Cogmind - Beta 13 @@@ ROGUE MODE // 2024.03.24 @ 21:29:59 Player: Senator honkstrong Result: Destroyed by G-47 Trooper with Particle Gun Performance ------------- Evolutions (2) 1000 Regions Visited (10) 2000 Robots Destroyed (376) 1880 Value Destroyed (11293) 11293 Prototype IDs (42) 840 Alien Tech Used (0) 0 Bonus (5562) 5562 TOTAL SCORE: 22575 Bonus ------- High Alert Combat Kills 3751 Follower Combat Kills 111 Entered Garrisons 400 Used RIF Installer 1000 Aligned with FarCom 300 Cogmind --------- Core Integrity 0/550 Matter 124/300 Energy 104/160 System Corruption 3% Temperature Cool (35) Movement Treading (162) Location -8/Garrison Parts ------- > --- POWER (1) -------- Light Nuclear Core > --- PROPULSION (4) --- Light Treads Light Treads Light Treads Armored Treads > --- UTILITY (3) ------ Large Storage Unit Improved Medium Armor Plating Improved Medium Armor Plating > --- WEAPON (3) ------- Gauss Rifle Gauss Rifle EMP Blaster > --- INVENTORY (15) --- Light Treads Hardened Heavy Armor Plating Authchip [R/Combat] Authchip [R/Combat] Authchip [R/Combat] Heavy Assault Rifle Heavy Assault Rifle Gauss Rifle Gauss Rifle Gauss Rifle AWS/Gauss Rocket Launcher Improved Datajack Peak State ------------ > --- POWER ------------ Improved Deuterium Engine > --- PROPULSION ------- Light Treads Light Treads Armored Treads Armored Treads > --- UTILITY ---------- Large Storage Unit Layered Heavy Armor Plating > --- WEAPON ----------- Heavy Assault Rifle KE Penetrator Enhanced Gauss Cannon > --- INVENTORY -------- Light Treads Light Treads Advanced Heat Sink Improved Medium Armor Plating Improved Medium Armor Plating Advanced Hacking Suite Relay Coupler [Sentry] Relay Coupler [Sentry] Heavy Assault Rifle Heavy Assault Rifle Heavy Assault Rifle Minigun AWS/Gauss Datajack [Rating: 44] Favorites ----------- Power Heavy Ion Engine Engine Heavy Ion Engine Power Core Light Nuclear Core Propulsion Light Treads Treads Light Treads Leg VSS Leg Wheel Compact Wheel Utility Large Storage Unit Storage Large Storage Unit Processor Improved Targeting Computer Hackware Hacking Suite Protection Hardened Medium Armor Plating Weapon Improved Assault Rifle Energy Gun Small Laser Energy Cannon Light EM Pulse Cannon Ballistic Gun Improved Assault Rifle Ballistic Cannon Light Cannon Launcher Grenade Launcher Build | -11 -10 -10 -9 -9 -9 -8 -8 -8 -8 -8 ------- Run | Yrd Mat Min Mat Min Exi Min Mat Gar Mat Gar Slots Evolved 4 | . . . 2 . . . 2 . . . Power . | . . . . . . . . . . . Propulsion 2 | . . . . . . . 2 . . . Utility 1 | . . . 1 . . . . . . . Weapon 1 | . . . 1 . . . . . . . Parts Attached 180 | 7 26 1 37 2 . 1 40 25 31 10 Power 10 | 1 . . 2 . . . 3 2 2 . Engine 7 | 1 . . 2 . . . 2 2 . . Core 3 | . . . . . . . 1 . 2 . Reactor . | . . . . . . . . . . . Propulsion 42 | 3 1 . 5 1 . . 14 8 8 2 Treads 36 | 2 1 . 5 1 . . 12 5 8 2 Leg 5 | . . . . . . . 2 3 . . Wheel 1 | 1 . . . . . . . . . . Hover . | . . . . . . . . . . . Flight . | . . . . . . . . . . . Utility 39 | 1 3 . 15 . . . 8 5 7 . Device . | . . . . . . . . . . . Storage 5 | 1 2 . 1 . . . . . 1 . Processor 2 | . 1 . . . . . 1 . . . Hackware 5 | . . . . . . . 2 1 2 . Protection 27 | . . . 14 . . . 5 4 4 . Artifact . | . . . . . . . . . . . Weapon 89 | 2 22 1 15 1 . 1 15 10 14 8 Energy Gun 3 | 2 1 . . . . . . . . . Energy Cannon 9 | . 9 . . . . . . . . . Ballistic Gun 49 | . 3 . 11 1 . 1 10 8 11 4 Ballistic Cannon 8 | . 3 1 2 . . . . 2 . . Launcher 20 | . 6 . 2 . . . 5 . 3 4 Special Weapon . | . . . . . . . . . . . Impact Weapon . | . . . . . . . . . . . Slashing Weapon . | . . . . . . . . . . . Piercing Weapon . | . . . . . . . . . . . Special Melee Weapon . | . . . . . . . . . . . Unidentified Prototypes . | . . . . . . . . . . . Parts Lost 40 | . . 1 5 2 . 1 10 13 8 . Power 4 | . . . . . . . 1 1 2 . Propulsion 14 | . . . 1 1 . . 6 4 2 . Utility 7 | . . 1 2 . . . 1 2 1 . Weapon 15 | . . . 2 1 . 1 2 6 3 . Highest Loss Streak 9 | . . 1 3 2 . 1 4 9 7 . To Critical Strikes . | . . . . . . . . . . . Average Slot Usage (%) 97 | . 99 97 99 99 100 99 96 89 90 100 Engine 9 | . 14 14 11 11 11 11 7 8 4 . Treads 26 | . 27 28 21 22 22 22 31 16 35 36 Leg 1 | . . . . . . . 2 11 . . Storage 10 | . 14 14 11 11 11 11 9 9 9 9 Processor 4 | . 13 11 . . . . 6 7 . . Protection 12 | . . . 21 22 22 22 10 6 8 18 Energy Cannon 1 | . 11 . . . . . . . . . Ballistic Gun 21 | . 4 4 28 32 33 32 26 23 19 15 Ballistic Cannon 3 | . 10 9 3 . . . . 3 4 . Launcher 2 | . 1 14 . . . . . . . 12 Naked Turns . | . . . . . . . . . . . Heaviest Build 67 | 13 33 37 53 53 53 53 54 67 67 51 Greatest Support 80 | 40 40 40 43 40 40 40 80 80 80 80 Greatest Overweight (x) 12 | . . . 1 1 1 1 12 2 . . Average Overweight (x) . | . . . . 1 1 1 . . . . Largest Inventory Capacity 15 | 8 15 15 15 15 15 15 15 15 15 15 Average Capacity 14 | 7 13 15 15 15 15 15 15 15 15 15 Most Carried 15 | . 11 15 15 15 15 15 15 15 15 15 Average Carried 13 | . 7 14 14 14 13 14 14 13 14 14 Final Capacity 15 | 8 15 15 15 15 15 15 15 15 15 15 Final Carried 15 | . 11 15 15 15 15 15 13 15 15 15 Class Distribution -------------------- 36% | Tank 25% | Scavenger-Skirmisher 21% | Mutant 15% | Scavenger-Tank Dominant Class ---------------- Mutant | -10/Materials Mutant | -10/Mines Tank | -9/Materials Tank | -9/Mines Tank | -9/Exiles Tank | -8/Mines Scavenger-Skirmisher | -8/Materials Scavenger-Skirmisher | -8/Garrison Scavenger-Skirmisher | -8/Materials Scavenger-Tank | -8/Garrison Resources | -11 -10 -10 -9 -9 -9 -8 -8 -8 -8 -8 ----------- Run | Yrd Mat Min Mat Min Exi Min Mat Gar Mat Gar Matter Collected 8636 | 263 905 227 2743 139 . 82 2019 843 1121 294 Remotely . | . . . . . . . . . . . Salvage Created 13677 | 236 2713 45 3492 221 . 222 3120 1181 1981 466 Parts 804 | 25 144 2 230 13 . 11 164 63 124 28 Haulers Intercepted 16 | . 2 . 5 . . . 6 . 3 . Recyclers Shooed 10 | . 2 . 8 . . . . . . . Parts Field Recycled . | . . . . . . . . . . . Retrieved Matter . | . . . . . . . . . . . Parts Self-Destructed . | . . . . . . . . . . . Prevented . | . . . . . . . . . . . Kills | -11 -10 -10 -9 -9 -9 -8 -8 -8 -8 -8 ------- Run | Yrd Mat Min Mat Min Exi Min Mat Gar Mat Gar Combat Hostiles Destroyed 231 | . 26 3 56 5 . 3 55 30 40 13 Guns 163 | . 4 . 45 5 . 3 46 27 27 6 Cannons 30 | . 16 2 5 . . . . 3 4 . AOE 37 | . 5 1 6 . . . 9 . 9 7 Classes Destroyed 21 | 3 6 1 5 . . . 5 . . 1 Worker 54 | 2 28 1 16 . . . 2 . 5 . Builder 42 | . 18 . 13 . . 1 9 . 1 . Tunneler 9 | 5 2 . 1 . . . 1 . . . Hauler 16 | . 2 . 5 . . . 6 . 3 . Recycler 20 | 1 10 . 7 . . 1 1 . . . Mechanic 1 | . . . 1 . . . . . . . Operator 6 | . 2 . 1 . . . 2 . 1 . Watcher 18 | . 3 . 5 . . . 5 1 4 . Swarmer 31 | . 3 . 3 . . . 6 10 5 4 Cutter 2 | . . . . . . . 2 . . . Grunt 127 | . 23 1 37 5 . 3 24 10 20 4 Brawler 6 | . . . 1 . . . 3 . 2 . Duelist 5 | . . . 3 . . . 2 . . . Protector 3 | . . . 2 . . . . . 1 . Sentry 37 | . . . 10 . . . 11 8 7 1 Demolisher 1 | . . . . . . . 1 . . . Specialist 8 | . . . . . . . 4 1 3 . Hunter 4 | . . . . . . . 1 1 1 1 Programmer 3 | . . . . . . . . . . 3 Heavy 2 | . . . . . . . 1 . 1 . Assembled 2 | . . 2 . . . . . . . . Best Kill Streak 12 | 4 11 2 10 3 . 3 9 7 12 4 Combat Bots Only 11 | . 4 1 5 3 . 3 6 7 11 4 Max Kills in Single Turn 4 | 1 2 1 2 1 . 1 4 2 3 4 Gunslinging 1 | . . . 1 . . . 1 1 . 1 Exploded 4 | . 2 1 2 . . . 3 . 2 4 Melee . | . . . . . . . . . . . Uniques/NPCs Destroyed . | . . . . . . . . . . . Combat | -11 -10 -10 -9 -9 -9 -8 -8 -8 -8 -8 -------- Run | Yrd Mat Min Mat Min Exi Min Mat Gar Mat Gar Hostile Shots Fired 958 | . 63 11 194 15 . 9 196 212 234 24 Missed 280 | . 23 1 48 2 . 1 66 58 75 6 Damage Taken 9804 | 9 429 208 1991 181 . 143 2375 1560 2632 276 Core 843 | . 46 23 205 12 . . 216 234 89 18 Absorbed by Shields . | . . . . . . . . . . . Ignored by Resistances 10 | . . . 10 . . . . . . . Regen/Repaired (Parts) 125 | . 125 . . . . . . . . . Core Remaining (%) 72 | 100 . 72 . . . 45 . . . . Volleys Fired 841 | 15 199 30 246 15 . 8 149 88 59 32 Largest 3 | 2 2 2 3 3 . 3 3 3 3 3 Hottest 113 | 80 112 87 107 69 . 69 81 103 113 94 Shots Fired 2131 | 30 377 31 675 44 . 24 437 239 192 82 Gun 1593 | 30 51 . 576 44 . 24 423 217 159 69 Cannon 454 | . 307 24 84 . . . . 22 17 . Launcher 84 | . 19 7 15 . . . 14 . 16 13 Special . | . . . . . . . . . . . Kinetic 1808 | . 149 24 660 44 . 24 423 239 176 69 Thermal 18 | 15 3 . . . . . . . . . Explosive 70 | . 19 7 15 . . . 14 . 9 6 Electromagnetic 235 | 15 206 . . . . . . . 7 7 Robot Hit Streak 29 | 5 17 3 17 12 . 18 29 15 20 7 Robot Miss Streak 5 | 3 4 4 5 2 . 1 4 4 4 4 Penetration Max 1 | . . . 1 . . . 1 . 1 1 Secondary Targets 25 | . . . 6 . . 1 8 9 . 1 Max Gunslinging Chain 1 | . . . 1 . . 1 1 1 . 1 Autonomous 55 | . . . . . . . . . 55 . Shots Hit Robots 1188 | 17 196 8 344 23 . 19 294 131 129 27 Core Hits 607 | 9 101 6 163 8 . 11 144 56 86 23 Critical Kills 15 | . . 3 2 . . . 3 4 2 1 Critical Parts Destroyed 16 | . . 3 7 . . . 3 . 3 . Critical Strikes 37 | . 3 6 10 . . . 6 4 7 1 Destroy 31 | . . 6 9 . . . 6 4 5 1 Blast 5 | . 2 . 1 . . . . . 2 . Corrupt 1 | . 1 . . . . . . . . . Melee Attacks . | . . . . . . . . . . . Impact . | . . . . . . . . . . . Slashing . | . . . . . . . . . . . Piercing . | . . . . . . . . . . . Sneak Attacks . | . . . . . . . . . . . Combat Hostiles . | . . . . . . . . . . . Follow-up Attacks . | . . . . . . . . . . . Damage Inflicted 26497 | 250 4845 299 6190 343 . 330 6181 2191 4754 1114 Guns 16320 | 203 269 . 4703 343 . 304 5010 1996 2817 675 Cannons 5067 | . 3527 177 754 . . . . 195 414 . Explosions 5012 | 47 1047 122 716 . . . 1136 . 1505 439 Melee . | . . . . . . . . . . . Ramming 98 | . 2 . 17 . . 26 35 . 18 . Kinetic 18410 | . 1022 177 5457 343 . 304 5010 2191 3231 675 Thermal 586 | 111 222 . . . . . . . 192 61 Explosive 4150 | . 801 122 716 . . . 1136 . 1121 254 Electromagnetic 3253 | 139 2798 . . . . . . . 192 124 Impact . | . . . . . . . . . . . Slashing . | . . . . . . . . . . . Piercing . | . . . . . . . . . . . Highest Corruption 4 | . . 4 . . . . . . . 3 Average Corruption 3 | . . 4 . . . . . . . 2 Corruption Purged . | . . . . . . . . . . . Corruption Blocked . | . . . . . . . . . . . Effects 3 | . . 3 . . . . . . . . Message Errors 1 | . . 1 . . . . . . . . Matter Fused 1 | . . 1 . . . . . . . . Alerts 1 | . . 1 . . . . . . . . Overload Shots . | . . . . . . . . . . . Overflow Damage 248 | . 160 4 13 . . . . . 27 44 Projectiles 130 | . 113 4 13 . . . . . . . Explosions 114 | . 47 . . . . . . . 23 44 Melee 4 | . . . . . . . . . 4 . Knockbacks 26 | . 6 3 13 . . . 1 . 3 . Impact 1 | . . . . . . . 1 . . . Kinetic 25 | . 6 3 13 . . . . . 3 . Secondary . | . . . . . . . . . . . Self-Inflicted Damage 244 | 9 16 9 17 . . . 53 . 131 9 Shots 15 | 1 2 1 1 . . . 2 . 7 1 Rammed 17 | . 1 . 5 1 . 3 5 . 2 . Targets Rammed 19 | . 1 . 5 1 . 3 6 . 3 . Kicked . | . . . . . . . . . . . Crushed 2 | . . . . . . . 1 . 1 . Highest Temperature 480 | 144 243 90 480 231 . 245 201 238 289 124 Average Temperature 76 | 55 51 35 114 85 . 110 49 56 80 34 Received Heat Transfer 2976 | . 195 27 957 96 . 72 540 585 450 54 Effects 27 | . . . 21 . . 3 . 3 . . Shutdowns 5 | . . . 5 . . . . . . . Energy Bleed 5 | . . . 5 . . . . . . . Interference 12 | . . . 6 . . 3 . 3 . . Matter Decay 1 | . . . 1 . . . . . . . Short Circuit 1 | . . . 1 . . . . . . . Damage (minor) 1 | . . . 1 . . . . . . . Damage (major) 2 | . . . 2 . . . . . . . Siege Activations . | . . . . . . . . . . . Robots Corrupted 2 | . 2 . . . . . . . . . Combat Hostiles 1 | . 1 . . . . . . . . . Parts Fried 18 | . 18 . . . . . . . . . Impact Corruptions 1 | . . . . . . . . . 1 . Robots Melted . | . . . . . . . . . . . Combat Hostiles . | . . . . . . . . . . . Parts Melted 2 | . 2 . . . . . . . . . Heat Transferred 700 | 150 350 . . . . . . . 150 50 Parts Sabotaged . | . . . . . . . . . . . Parts Stolen . | . . . . . . . . . . . Parts Stripped . | . . . . . . . . . . . Power Chain Reactions 11 | 1 6 . . . . . . . 3 1 Alert | -11 -10 -10 -9 -9 -9 -8 -8 -8 -8 -8 ------- Run | Yrd Mat Min Mat Min Exi Min Mat Gar Mat Gar Peak Influence 1778 | 40 1226 491 1677 769 . 90 1158 1778 1305 1363 Initial 866 | . 26 476 144 654 . . . 752 866 793 Average 694 | 14 664 359 863 541 . 19 440 1272 903 944 Maximum Alert Level 5 | . 4 2 5 3 . . 4 5 4 4 Low Security (%) 13 | 100 6 21 1 . . 100 16 . . . Level 1 16 | . 22 41 13 9 . . 46 . . . Level 2 18 | . 30 36 22 70 . . 13 . . . Level 3 30 | . 21 . 35 19 . . 15 23 93 77 Level 4 18 | . 18 . 26 . . . 7 61 5 22 Level 5 1 | . . . 1 . . . . 15 . . High Security . | . . . . . . . . . . . Max Security . | . . . . . . . . . . . Sterilizations 2 | . . . 1 . . . 1 . . . Squads Dispatched 45 | . 9 . 9 . . . 14 . 13 . Investigation 11 | . 8 . 2 . . . . . 1 . Extermination . | . . . . . . . . . . . Reinforcement 16 | . 1 . 2 . . . 8 . 5 . Assault 6 | . . . 5 . . . . . 1 . Garrison 12 | . . . . . . . 6 . 6 . Intercept . | . . . . . . . . . . . Searches Triggered . | . . . . . . . . . . . Construction Impeded 3 | . . . 1 . . . 1 . 1 . Haulers Reinforced . | . . . . . . . . . . . Active Scanning Responses . | . . . . . . . . . . . Cargo Convoy Interrupts . | . . . . . . . . . . . Stealth | -11 -10 -10 -9 -9 -9 -8 -8 -8 -8 -8 --------- Run | Yrd Mat Min Mat Min Exi Min Mat Gar Mat Gar Distress Signals 7 | . . . 3 . . . 2 2 . . Communications Jammed . | . . . . . . . . . . . Distress Signals . | . . . . . . . . . . . Times Spotted 288 | . 28 8 82 5 . 3 72 37 45 8 Peak Tracking Total 8 | . 3 2 6 3 . 3 5 8 8 3 Tactical Retreats 22 | . 1 2 5 . . . 7 6 1 . Traps | -11 -10 -10 -9 -9 -9 -8 -8 -8 -8 -8 ------- Run | Yrd Mat Min Mat Min Exi Min Mat Gar Mat Gar Traps Triggered 15 | . 2 . 1 . . . 2 10 . . Indirectly . | . . . . . . . . . . . Trap Hack Attempts . | . . . . . . . . . . . Triggered . | . . . . . . . . . . . Disarmed . | . . . . . . . . . . . Reprogrammed . | . . . . . . . . . . . Reused . | . . . . . . . . . . . Traps Extracted . | . . . . . . . . . . . Installed 1 | . . . . . 1 . . . . . Triggered . | . . . . . . . . . . . Most Traps Carried 1 | . . . . 1 1 . . . . . Machines | -11 -10 -10 -9 -9 -9 -8 -8 -8 -8 -8 ---------- Run | Yrd Mat Min Mat Min Exi Min Mat Gar Mat Gar Machines Disabled 79 | . 30 13 15 1 . . 4 5 8 3 Max in Single Turn 3 | . 3 2 2 1 . . 1 1 2 1 Garrison Relay 5 | . . . . . . . . 3 . 2 Machines Repaired . | . . . . . . . . . . . Machines Dismantled . | . . . . . . . . . . . Machines Sabotaged 2 | . 2 . . . . . . . . . Overloaded Fab Kills . | . . . . . . . . . . . Hacking | -11 -10 -10 -9 -9 -9 -8 -8 -8 -8 -8 --------- Run | Yrd Mat Min Mat Min Exi Min Mat Gar Mat Gar Machines Accessed 42 | . 10 . 11 . 2 . 8 2 6 3 Terminals 33 | . 7 . 9 . . . 7 2 5 3 Fabricators . | . . . . . . . . . . . Repair Stations 1 | . 1 . . . . . . . . . Recycling Units 3 | . 2 . 1 . . . . . . . Scanalyzers 1 | . . . 1 . . . . . . . Garrison Access 2 | . . . . . . . 1 . 1 . Total Hacks 159 | . 40 . 35 . 24 . 32 4 21 3 Successful 93 | . 24 . 16 . 24 . 13 . 14 2 Failed 62 | . 15 . 18 . . . 18 4 6 1 Catastrophic 9 | . 1 . 3 . . . 1 3 . 1 Database Lockouts 4 | . 1 . 1 . . . 1 . 1 . Manual 82 | . 20 . 20 . 1 . 25 . 16 . Terminals 119 | . 30 . 32 . . . 30 4 20 3 Fabricators . | . . . . . . . . . . . Repair Stations 5 | . 5 . . . . . . . . . Recycling Units 6 | . 5 . 1 . . . . . . . Scanalyzers 2 | . . . 2 . . . . . . . Garrison Access 3 | . . . . . . . 2 . 1 . Terminal Hacks 72 | . 11 . 12 . 24 . 11 . 12 2 Record 24 | . 1 . . . 23 . . . . . Robot Analysis 12 | . 2 . 4 . . . 3 . 3 . Prototype ID Bank 15 | . 4 . 3 . . . 5 . 3 . Branch Access Points 1 | . . . 1 . . . . . . . Emergency Access Points 1 | . . . . . . . . . . 1 Alert Level 3 | . 1 . 2 . . . . . . . Unreport Threat 4 | . . . . . . . 1 . 3 . Locate Traps 8 | . 2 . 2 . . . 2 . 2 . Patrol Status 1 | . . . . . . . . . 1 . Hauler Manifests 1 | . 1 . . . . . . . . . Patrol Navigation 1 | . . . . . . . . . . 1 Derelict Proto ID Bank 1 | . . . . . 1 . . . . . Fabricator Hacks . | . . . . . . . . . . . Repair Station Hacks 4 | . 4 . . . . . . . . . Scan Component 2 | . 2 . . . . . . . . . Repair 2 | . 2 . . . . . . . . . Recycling Unit Hacks 2 | . 2 . . . . . . . . . Retrieve Components 2 | . 2 . . . . . . . . . Scanalyzer 2 | . . . 2 . . . . . . . Insert Component 1 | . . . 1 . . . . . . . Analyze 1 | . . . 1 . . . . . . . Garrison Access Hacks 2 | . . . . . . . 1 . 1 . Unlock Access 2 | . . . . . . . 1 . 1 . Unauthorized Hacks 11 | . 7 . 2 . . . 1 . 1 . Terminals 8 | . 5 . 1 . . . 1 . 1 . Botnet 4 | . 1 . 1 . . . 1 . 1 . Sabotage 4 | . 4 . . . . . . . . . Fabricators . | . . . . . . . . . . . Repair Stations . | . . . . . . . . . . . Recycling Units 3 | . 2 . 1 . . . . . . . Tunnel 3 | . 2 . 1 . . . . . . . Scanalyzers . | . . . . . . . . . . . Garrison Access . | . . . . . . . . . . . Data Cores Recovered 2 | . 1 . . . . . . . 1 . Used 2 | . 1 . . . . . . . 1 . Hacking Detections 35 | . 8 . 10 . . . 8 2 5 2 Full Trace Events 3 | . 2 . . . . . . . 1 . Feedback Events . | . . . . . . . . . . . Feedback Blocked . | . . . . . . . . . . . Robot Schematics Acquired . | . . . . . . . . . . . Robots Built . | . . . . . . . . . . . Authchips . | . . . . . . . . . . . Time . | . . . . . . . . . . . Total Robot Build Rating . | . . . . . . . . . . . Part Schematics Acquired 1 | . . . 1 . . . . . . . Parts Built . | . . . . . . . . . . . Authchips . | . . . . . . . . . . . Time . | . . . . . . . . . . . Total Part Build Rating . | . . . . . . . . . . . Parts Repaired 2 | . 2 . . . . . . . . . Time 52 | . 52 . . . . . . . . . Parts Recycled . | . . . . . . . . . . . Recycled Matter . | . . . . . . . . . . . Retrieved Matter . | . . . . . . . . . . . Retrieved Components 20 | . 20 . . . . . . . . . Parts Scanalyzed 1 | . . . 1 . . . . . . . Part Schematics Acquired 1 | . . . 1 . . . . . . . Parts Damaged . | . . . . . . . . . . . Bothacking | -11 -10 -10 -9 -9 -9 -8 -8 -8 -8 -8 ------------ Run | Yrd Mat Min Mat Min Exi Min Mat Gar Mat Gar Used RIF Installer 2 | . . . . . . . . 1 . 1 Zone Cloak 1 | . . . . . . . . . . 1 Robots Hacked . | . . . . . . . . . . . Non-combat . | . . . . . . . . . . . Combat . | . . . . . . . . . . . Robot Hacks Applied . | . . . . . . . . . . . Relay Couplers Released 22 | . . . . . . . . 14 . 8 Machine Destruction 22 | . . . . . . . . 14 . 8 Fabnet Peak Effective % . | . . . . . . . . . . . Robots Rewired . | . . . . . . . . . . . Allies Hacked . | . . . . . . . . . . . Hacks Repelled . | . . . . . . . . . . . Allies | -11 -10 -10 -9 -9 -9 -8 -8 -8 -8 -8 -------- Run | Yrd Mat Min Mat Min Exi Min Mat Gar Mat Gar Total Allies 5 | . . 2 . 3 . . . . . . Largest Group 3 | . . 2 . 3 3 3 2 . . . Highest-Rated Group 40 | . . 39 . 40 40 40 32 . . . Highest-Rated Ally 31 | . . 31 . 16 16 16 16 . . . Total Orders 3 | . . . . . 2 . 1 . . . STAY 2 | . . . . . 1 . 1 . . . FOLLOW 1 | . . . . . 1 . . . . . Ally Attacks 34 | . . 8 . . . 13 13 . . . Total Damage 396 | . . 84 . . . 117 195 . . . Kills 4 | . . 1 . . . 1 2 . . . Allies Corrupted . | . . . . . . . . . . . Allies Melted . | . . . . . . . . . . . Intel | -11 -10 -10 -9 -9 -9 -8 -8 -8 -8 -8 ------- Run | Yrd Mat Min Mat Min Exi Min Mat Gar Mat Gar Robot Analysis Total 12 | . 2 . 4 . . . 3 . 3 . Derelict Logs Recovered 2 | . . 1 . 1 . . . . . . Drone Launches . | . . . . . . . . . . . Drone Recoveries . | . . . . . . . . . . . Exploration | -11 -10 -10 -9 -9 -9 -8 -8 -8 -8 -8 ------------- Run | Yrd Mat Min Mat Min Exi Min Mat Gar Mat Gar Turns Passed 20192 | 121 2987 1100 4114 1331 1120 1481 3012 1995 1611 1320 Spaces Moved 7812 | 46 1158 502 1392 529 461 599 1170 784 581 590 Core 8 | 4 . . . . . . 4 . . . Treads 7531 | 36 1158 502 1392 529 461 599 1088 595 581 590 Legs 267 | . . . . . . . 78 189 . . Wheels 6 | 6 . . . . . . . . . . Hover . | . . . . . . . . . . . Flight . | . . . . . . . . . . . Fastest Speed 50 | 50 160 160 160 240 240 240 160 110 160 162 Average Speed 190 | 142 160 160 207 240 240 240 170 198 161 162 Slowest Speed 650 | 160 160 160 240 240 240 240 650 270 166 162 Overloaded Moves . | . . . . . . . . . . . Propulsion Burnouts . | . . . . . . . . . . . Robots Hopped . | . . . . . . . . . . . Cave-ins Triggered . | . . . . . . . . . . . Exploration Rate (%) 73 | 4 98 85 96 95 72 101 86 73 35 62 Regions Visited 10 Branch Regions 4 Pre-discovered Areas 4 | . 2 . 1 . 1 . . . . . Known Exits Taken 4 | . . . 1 . . 1 1 . 1 . Unknown Exits Taken 5 | 1 1 1 . 1 1 . . . . . Scrap Searched 7 | . . 1 . 3 . 3 . . . . Spaces Dug 3 | . . . . . . . . . . 3 Terrain Destroyed 693 | 3 292 39 128 . . . 100 1 104 26 Melee . | . . . . . . . . . . . Projectile 63 | . 1 12 14 . . . 4 1 28 3 AOE 629 | 3 291 27 114 . . . 96 . 76 22 Terrain Rammed . | . . . . . . . . . . . Walls Destroyed . | . . . . . . . . . . . Machines Disabled . | . . . . . . . . . . . Actions | -11 -10 -10 -9 -9 -9 -8 -8 -8 -8 -8 --------- Run | Yrd Mat Min Mat Min Exi Min Mat Gar Mat Gar Total 11464 | 68 1913 769 2083 557 480 621 1885 1054 1144 890 Wait 2386 | . 514 227 354 5 4 10 490 104 431 247 Move 7801 | 45 1157 501 1391 528 460 598 1169 782 580 590 Hop . | . . . . . . . . . . . Pick Up 100 | . 10 7 18 4 7 1 14 13 21 5 Fast Attach 52 | 7 7 . 11 . . . 13 11 3 . Attach 40 | . 1 . 10 2 . 1 5 8 13 . Detach 7 | . 1 . 3 . . . . 2 1 . Swap 88 | . 18 1 16 . . . 22 6 15 10 Drop 100 | 1 5 3 29 2 8 . 17 11 18 6 Fire 841 | 15 199 30 246 15 . 8 149 88 59 32 Melee . | . . . . . . . . . . . Ram . | . . . . . . . . . . . Kick . | . . . . . . . . . . . Crush 19 | . 1 . 5 1 . 3 6 . 3 . Escape Stasis 29 | . . . . . . . . 29 . . Rewire . | . . . . . . . . . . . Trap 1 | . . . . . 1 . . . . . Miscellaneous . | . . . . . . . . . . . Route ------- -11/Scrapyard -10/Materials (discovered 4 exits: *Mat x3 / [*Min]) -10/Mines -9/Materials (discovered 4 exits: *Mat x2 / *Min x2) -9/Mines (discovered 3 exits: *Mat x2 / *Exi) -9/Exiles -8/Mines (discovered 2 exits: *Mat x2) -8/Materials (discovered 5 exits: *Fac x2 / [*Sto x2] / Gar) -8/Garrison (discovered 3 exits: *Mat x3) -8/Materials (discovered 2 exits: *Fac / Gar) -8/Garrison (discovered 2 exits: *Fac x2) History --------- Turn | Location | Event 22 | -11/Scrapyard | Discovered new exit (range 16) 122 | -11/Scrapyard | Entered Materials 300 | -10/Materials | Build established: Mutant 1241 | -10/Materials | Discovered new exit (range 15) 1252 | -10/Materials | Central database locked down 1532 | -10/Materials | Discovered new exit (range 16) 1794 | -10/Materials | Discovered new exit (range 16) 2431 | -10/Materials | Repaired Grenade Launcher 2458 | -10/Materials | Repaired Lgt. Treads 2791 | -10/Materials | Discovered new exit (range 14) 3109 | -10/Materials | Entered Mines 3110 | -10/Mines | Assembled infested the area 3115 | -10/Mines | Assisted by a Guerilla fighting off Assembled 3879 | -10/Mines | Learned location of 1 exit from Materials 3892 | -10/Mines | A weapon hastily lodged in a ceiling crevice suddenly fell to the ground 4146 | -10/Mines | Discovered new exit (range 7) 4209 | -10/Mines | Entered Materials 4209 | -9/Materials | Evolved 2 slots: Utility x1, Weapon x1 4210 | -9/Materials | Identified exit to Materials 4511 | -9/Materials | Build established: Tank 5500 | -9/Materials | Discovered new exit (range 7) 5742 | -9/Materials | Discovered new exit (range 16) 6027 | -9/Materials | Discovered exit to Materials (range 10) 6209 | -9/Materials | First assault squad dispatched 6867 | -9/Materials | Build established: Scavenger-Tank 6884 | -9/Materials | Central database locked down 6927 | -9/Materials | Identified exit to Mines 7257 | -9/Materials | Build established: Tank 7556 | -9/Materials | Lost 3 parts (1n1u1w) 7813 | -9/Materials | Build established: Scavenger-Tank 7928 | -9/Materials | Core integrity fell below 50% 8216 | -9/Materials | Sterilization system engaged 8216 | -9/Materials | Non-combat units ordered to evacuate 8222 | -9/Materials | Build established: Tank 8316 | -9/Materials | Combat units ordered to evacuate 8323 | -9/Materials | Entered Mines 8330 | -9/Mines | Received a Rocket Launcher from a helpful Derelict 8683 | -9/Mines | Discovered exit to Materials (range 11) 8942 | -9/Mines | Found a hidden stash of uninstalled traps 9219 | -9/Mines | Discovered exit to Materials (range 8) 9320 | -9/Mines | Deemed a non-threat by the Exiles lab entrance 9433 | -9/Mines | Assisted by bots powering up and referring to "LRC-V3" 9644 | -9/Mines | Discovered new exit (range 5) 9654 | -9/Mines | Entered Exiles 9654 | -9/Exiles | Accompanied by 3 allies 9714 | -9/Exiles | Met 8R-AWN 9755 | -9/Exiles | Met EX-HEX 9846 | -9/Exiles | Met EX-DEC 9969 | -9/Exiles | Learned location of Zion (-6) 10296 | -9/Exiles | Warned about trapping Exiles lab 10354 | -9/Exiles | Met EX-BIN 10382 | -9/Exiles | Aligned with FarCom system 10385 | -9/Exiles | Given EX-Vault access code 10440 | -9/Exiles | Opened EX-Vault 10459 | -9/Exiles | Found AWS/Gauss 10465 | -9/Exiles | Found Gui. Plasma Cannon 10539 | -9/Exiles | Exiles lab attacked by MAIN.C 10744 | -9/Exiles | Discovered new exit (range 12) 10774 | -9/Exiles | Left Exiles lab with AWS/Gauss 10774 | -9/Exiles | Entered Mines 10774 | -8/Mines | Accompanied by 3 allies 11406 | -8/Mines | Discovered exit to Materials (range 5) 12097 | -8/Mines | Discovered exit to Materials (range 6) 12255 | -8/Mines | Entered Materials 12255 | -8/Materials | Accompanied by 2 allies 12255 | -8/Materials | Evolved 2 slots: Propulsion x2 12256 | -8/Materials | Identified exit to Factory 12396 | -8/Materials | Discovered new exit (range 13) 12672 | -8/Materials | Build established: Scavenger-Tank 13239 | -8/Materials | Build established: Scavenger-Skirmisher 14316 | -8/Materials | Garrison activated, responded to threat 14601 | -8/Materials | Central database locked down 14610 | -8/Materials | Discovered exit to Factory (range 16) 14796 | -8/Materials | Discovered new exit (range 4) 14826 | -8/Materials | Garrison activated, responded to threat 14844 | -8/Materials | Lost 4 parts (1p2n1w) 14908 | -8/Materials | Lost 4 parts (3n1u) 14992 | -8/Materials | Sterilization system engaged 14992 | -8/Materials | Non-combat units ordered to evacuate 15056 | -8/Materials | Identified exit to Garrison 15092 | -8/Materials | Combat units ordered to evacuate 15267 | -8/Materials | Entered Garrison 15345 | -8/Garrison | Triggered checkpoint 15400 | -8/Garrison | Garrison Relay disabled 15475 | -8/Garrison | Triggered checkpoint 15616 | -8/Garrison | Triggered checkpoint 15703 | -8/Garrison | Core integrity fell below 50% 15756 | -8/Garrison | Lost 9 parts (1p3n1u4w) 15759 | -8/Garrison | Destroyed 7 combat bots 15854 | -8/Garrison | Triggered checkpoint 16032 | -8/Garrison | Discovered new exit (range 12) 16124 | -8/Garrison | Triggered checkpoint 16289 | -8/Garrison | Garrison Relay disabled 16310 | -8/Garrison | Triggered checkpoint 16375 | -8/Garrison | Installed Relay Interface Framework 16645 | -8/Garrison | Triggered checkpoint 16740 | -8/Garrison | Discovered new exit (range 8) 16884 | -8/Garrison | Triggered checkpoint 16917 | -8/Garrison | Core integrity fell below 20% 17052 | -8/Garrison | Spotted B-75 Beast 17120 | -8/Garrison | Triggered checkpoint 17152 | -8/Garrison | Triggered checkpoint 17171 | -8/Garrison | Garrison Relay disabled 17211 | -8/Garrison | Discovered new exit (range 10) 17262 | -8/Garrison | Entered Materials 18012 | -8/Materials | Garrison activated, responded to threat 18034 | -8/Materials | Discovered exit to Factory (range 16) 18147 | -8/Materials | Destroyed 11 combat bots 18150 | -8/Materials | Lost 7 parts (1p2n1u3w) 18250 | -8/Materials | Central database locked down 18462 | -8/Materials | First assault squad dispatched 18617 | -8/Materials | Destroyed 11 combat bots 18661 | -8/Materials | Identified exit to Garrison 18873 | -8/Materials | Entered Garrison 18893 | -8/Garrison | Expanded RIF knowledge: Zone Cloak 18917 | -8/Garrison | Build established: Scavenger-Tank 19365 | -8/Garrison | Triggered checkpoint 19455 | -8/Garrison | Discovered exit to Factory (range 9) 19566 | -8/Garrison | Triggered checkpoint 19641 | -8/Garrison | Garrison Relay disabled 19764 | -8/Garrison | Triggered checkpoint 19852 | -8/Garrison | Triggered checkpoint 19895 | -8/Garrison | Garrison Relay disabled 19933 | -8/Garrison | Discovered exit to Factory (range 12) 20184 | -8/Garrison | Triggered checkpoint 20193 | -8/Garrison | Destroyed by G-47 Trooper with Particle Gun Last Messages --------------- 19985_ Slug penetrates P-60 Hacker. 19985_ Destroyed Gravmag System. 19988_ Slug penetrates Wall. 19991_ Slug penetrates P-60 Hacker. 19991_ P-60 Hacker destroyed. 19991_ Destroyed Gravmag System. 19991_ Switching to secondary target: P-60 Hacker. 19991_ Slug penetrates P-60 Hacker. 19991_ P-60 Hacker destroyed. 19995_ Acquired 126 matter. 20004_ Slug penetrates Wall. 20073_ ALERT: Garrison interior compromised. 20097_ Slug penetrates Wall. 20100_ Slug penetrates H-55 Commando. 20100_ H-55 Commando suffers critical hit (Destroy). 20100_ H-55 Commando destroyed. 20125_ Dropped Relay Coupler [Sentry]. 20125_ Acquired Gauss Rifle. 20175_ Slug penetrates Wall. 20192_ Slug penetrates G-47 Trooper. Map ----- +----------------------------------------------------+ | ?????????# ### #??# #??????# + + #?## # | | ?????????# + ##?# ######## ##### ##### #?# ! | | ????????## ## ### ##%[ %## #???# #???# ### | | ????????#T # ## ##* [## ##??# #???# | | ????????## ## !## #### #???# #### | | ?????????# =% + #???# ###### | | ?????????# =! ######???# "#???? | | ?????????### # ## ## ## #????????# T#???? | | ???????????######## ## ## #????????#""#???? | | ????????????????#%! "????????####???? | | ?????????########=[ "g??????????????? | | ?????????# "g??????????????? | | ?????????# ###### "???????????????? | | ????????????????### # ## #???????????????? | | ????????##+########! ## ## ##??????????????? | | ????????# ????????+????? | | ????????# ^ ?????????????? | | ????????# #####+## ?????????????? | | ????????# #?????Y## ## g "##++###?+????????????? | | ????????# #???????# #?g ??????????????????????? | | ????????# +???????# #?# #??????????????????????? | | ????????# #???????+ #?# #?????????????+????????? | | ????????# #???????# #?# #??????????????????????? | | ??+?????# #???????# #?# #??????????????????????? | | ###"""### #####+### ### #??????????????????????? | | ; @#?????????????+????????? | | #####?????????????+????????? | | ###"""### ############??????????????????????????? | | ????????# #?????????????????????????????????????? | | ????????# #?????????????????????????????????????? | | ????????# #?????????????????????????????????????? | | ????????# #?????????????????????????????????????? | | ????????# #?????????????????????????????????????? | | ????????# #?????????????????????????????????????? | | ????????# #?????????????????????????????????????? | | ????????# #?????????????????????????????????????? | | ????????# #??????????????????????????+C?????????? | | ######### #?????????????????????????????????????? | | #?????????????????????????????????????? | | #?????????????????????????????????????? | | ## ######?????????????????????????????????????? | | ## #??????????????????????????????????????????? | | ##### #??????????????????????????????????????????? | | ???## ##?????????????????????????????????????????? | | ???# #?????????????????????????????????????????? | | ???#" "#?????????????????????????????????????????? | | ???#" "#?????????????????????????????????????????? | | ???#" "#?????????????????????????????????????????? | | ???#"""#?????????????????????????????????????????? | | ???#####?????????????????????????????????????????? | +----------------------------------------------------+ Best States ------------- Heat Dissipation 31 Energy Generation 16 Energy Capacity 290 Matter Stores 300 Matter Capacity 300 Sight Range 16 Terrain Scan Density 10 Armor Coverage 600 Resistance: KI 20 Evasion (%) 55 Targeting Accuracy 6 Recoil Reduction 4 Offensive Hacking 24 Defensive Hacking 10 Authchip Count 3 Item Schematics ----------------- Bore Cannon | -9/Materials | Scanalyzed Robot Schematics ------------------ None Fabricated ------------ Nothing Alien Tech Used ----------------- None Achievements -------------- None Challenges ------------ None Game ------ Seed TargetWeaponsAutogun Manual? 0 Play Time 02:23:53 Cumulative 73.7 hours Start 2024.03.24 @ 15:42:38 End 2024.03.24 @ 21:29:59 Sessions 7 Manual Loads 0 Difficulty Rogue Special Mode None Game No. 57 Rogue 57 Adventurer 0 Explorer 0 Win Type - Total 0 Types 0/0/0/0/0/0/0/0/0 Lore% 32 Gallery% 40 Achievement% 34 Wizard Run 0 Options --------- Layout 0 ASCII 0 Keyboard 0 Movement Mouse Keybinds 0 Fullscreen 1 Font 18/SmallcapsGlow Map View 76x50 Zoom Use 0% Tactical HUD 1 Map Filters NONE Filters NONE Steam 0 RUN: df382952-b928-4e92-b57f-cbb3a2dfe995